Cogmind - Beta 11 @@@ ROGUE MODE // 2022.03.29 @ 21:42:54 Player: albenzo Result: Destroyed by MAIN.C with Heavy Quantum Rifle Performance ------------- Evolutions (9) 4500 Regions Visited (22) 4400 Robots Destroyed (55) 275 Value Destroyed (1993) 1993 Prototype IDs (59) 1180 Alien Tech Used (0) 0 Bonus (9876) 9876 TOTAL SCORE: 22224 Bonus ------- Triggered Max Security 1000 Follower Combat Kills 482 Aligned with FarCom 300 Met Warlord at Base 500 MAIN.C Attacked Warlord 500 Warlord Defense Kill 94 Met Warlord at Research 2000 Met MAIN.C 5000 Cogmind --------- Core Integrity 0/1600 Matter 143/300 Energy 94/100 System Corruption 18% Temperature Cool (9) Movement Core (50) Location -1/Command Parts ------- > --- POWER (2) -------- (None) > --- PROPULSION (9) --- (None) > --- UTILITY (12) ----- Improved Melee Analysis Suite Core Analyzer > --- WEAPON (2) ------- Power Sword > --- INVENTORY (5) ---- Advanced ECM Suite Power Sword Peak State ------------ > --- POWER ------------ Light Antimatter Reactor Light Quantum Reactor > --- PROPULSION ------- Q-thruster Improved Diametric Drive Improved Diametric Drive Improved Diametric Drive Impulse Thruster Array Cooled Q-thruster Experimental Q-thruster Experimental Q-thruster > --- UTILITY ---------- Power Amplifier Advanced Heat Sink Advanced Heat Sink Advanced Heat Sink Advanced Heat Sink Medium Storage Unit Structural Scanner Advanced Target Analyzer Advanced Target Analyzer Advanced Actuator Array Layered Medium Armor Plating Improved System Shield > --- WEAPON ----------- Power Sword Power Sword > --- INVENTORY -------- Light Quantum Reactor Improved Antigrav System Impulse Thruster Advanced ECM Suite Layered Medium Armor Plating Fusion Bomb Launcher Power Sword Enhanced Force Lance [Rating: 170] Favorites ----------- Power Micro Fission Core Engine Light Angular Momentum Engine Power Core Micro Fission Core Reactor Light Antimatter Reactor Propulsion Improved Surge Thruster Treads Biometal Medium Treads Leg Aluminum Leg Wheel Centrium Wheel Hover Unit Improved Antigrav System Flight Unit Improved Surge Thruster Utility Advanced Heat Sink Device Advanced Heat Sink Storage Large Storage Unit Processor Improved Launcher Guidance Computer Hackware Hacking Suite Protection Makeshift Armor Plating Weapon Small Laser Energy Gun Small Laser Launcher Smartbomb Launcher Special Weapon RU-N14's Throwing Claymores v3 Impact Weapon Heavy Flail Slashing Weapon Power Sword Piercing Weapon Lance Build | -11 -10 -10 -9 -9 -9 -8 -8 -7 -6 -5 -5 -5 -5 -4 -4 -4 -4 -3 -3 -2 -1 -1 ------- Run | Scr Mat Min Mat Min Exi Min Mat Fac Fac Fac Upp Upp War Pro Fac Upp Upp Res Tes Res Acc Com Slots Evolved 18 | . . . 2 . . . 2 2 2 2 . . . . 2 . . 2 . 2 2 . Power 1 | . . . . . . . . . . 1 . . . . . . . . . . . . Propulsion 7 | . . . 1 . . . 1 . 1 1 . . . . 1 . . 1 . . 1 . Utility 10 | . . . 1 . . . 1 2 1 . . . . . 1 . . 1 . 2 1 . Weapon . | . . . . . . . . . . . . . . . . . . . . . . . Parts Attached 241 | 7 1 3 7 . 4 . 16 2 9 22 1 6 8 9 30 . 2 67 4 13 21 9 Power 31 | 1 . 1 1 . . . 1 . 1 4 . . . . 6 . . 7 1 . 6 2 Engine 5 | 1 . . 1 . . . 1 . 1 1 . . . . . . . . . . . . Core 7 | . . 1 . . . . . . . 3 . . . . 3 . . . . . . . Reactor 19 | . . . . . . . . . . . . . . . 3 . . 7 1 . 6 2 Propulsion 86 | 2 . 1 4 . . . 3 . 2 7 . . . 4 9 . 1 41 2 3 5 2 Treads 6 | . . . . . . . . . . . . . . . 2 . . 4 . . . . Leg 8 | 2 . 1 3 . . . 1 . . . . . . . . . . 1 . . . . Wheel 4 | . . . 1 . . . 1 . . . . . . . 1 . . 1 . . . . Hover 1 | . . . . . . . . . . . . . . . . . . 1 . . . . Flight 67 | . . . . . . . 1 . 2 7 . . . 4 6 . 1 34 2 3 5 2 Utility 84 | 2 1 . 1 . 1 . 5 2 6 10 1 2 4 . 12 . 1 15 1 9 10 1 Device 55 | 1 1 . 1 . . . 3 2 5 8 . . 1 . 8 . 1 11 1 8 4 . Storage 4 | 1 . . . . 1 . 1 . . . . . . . . . . 1 . . . . Processor 8 | . . . . . . . . . . . . 2 . . 1 . . 2 . . 2 1 Hackware 4 | . . . . . . . . . . 1 . . . . 2 . . 1 . . . . Protection 13 | . . . . . . . 1 . 1 1 1 . 3 . 1 . . . . 1 4 . Artifact . | . . . . . . . . . . . . . . . . . . . . . . . Weapon 40 | 2 . 1 1 . 3 . 7 . . 1 . 4 4 5 3 . . 4 . 1 . 4 Energy Gun 9 | 2 . 1 1 . 3 . 2 . . . . . . . . . . . . . . . Energy Cannon . | . . . . . . . . . . . . . . . . . . . . . . . Ballistic Gun . | . . . . . . . . . . . . . . . . . . . . . . . Ballistic Cannon . | . . . . . . . . . . . . . . . . . . . . . . . Launcher 3 | . . . . . . . . . . . . 1 . 1 . . . . . . . 1 Special Weapon 1 | . . . . . . . . . . . . . 1 . . . . . . . . . Impact Weapon 7 | . . . . . . . 4 . . . . . 2 . 1 . . . . . . . Slashing Weapon 11 | . . . . . . . 1 . . 1 . 1 . 2 1 . . 2 . 1 . 2 Piercing Weapon 9 | . . . . . . . . . . . . 2 1 2 1 . . 2 . . . 1 Special Melee Weapon . | . . . . . . . . . . . . . . . . . . . . . . . Unidentified Prototypes 10 | . . . . . . . 1 . . 1 . . 2 . . . . 4 . 1 1 . Corrupted Parts 3 | . . . . . . . . . . . . . . . . . . 3 . . . . System Corruption 30 | . . . . . . . . . . . . . . . . . . 30 . . . . Parts Lost 75 | . . . . . . . 4 . . 5 . . 1 1 7 . . 28 . . 6 23 Power 8 | . . . . . . . . . . . . . . . . . . 4 . . 1 3 Propulsion 33 | . . . . . . . 3 . . 2 . . . 1 3 . . 14 . . . 10 Utility 29 | . . . . . . . 1 . . 3 . . 1 . 3 . . 9 . . 5 7 Weapon 5 | . . . . . . . . . . . . . . . 1 . . 1 . . . 3 Highest Loss Streak 23 | . . . . . . . 4 . . 4 . . 1 1 6 . . 21 . . 5 23 To Critical Strikes 1 | . . . . . . . 1 . . . . . . . . . . . . . . . Average Slot Usage (%) 85 | . 100 100 94 100 100 100 81 76 79 76 70 76 81 80 80 78 80 84 95 89 95 74 Engine 3 | . 14 1 3 11 11 11 8 7 6 7 . . . . . . . . . . . . Core 3 | . . 12 7 . . . . . . 3 11 11 11 10 3 5 5 . . . . . Reactor 2 | . . . . . . . . . . . . . . . 1 5 5 7 9 8 7 5 Leg 7 | . 28 28 25 33 33 33 12 . . . . . . . . . . . . . . . Flight 15 | . . . . . . . 5 7 13 16 17 17 17 17 29 21 22 26 33 30 32 24 Device 20 | . 14 14 21 22 22 22 22 30 31 28 18 17 15 10 8 15 15 22 23 20 27 19 Storage 5 | . 14 14 11 11 11 11 9 7 6 5 5 5 5 4 . . . 1 4 4 4 2 Processor 2 | . . . . . . . . . . . . 4 5 5 7 10 10 2 9 8 11 14 Hackware 3 | . . . . . . . . . . 1 5 5 5 5 5 10 10 10 4 4 . . Protection 3 | . . . . . . . 4 7 7 3 4 5 5 10 9 5 5 1 . 4 3 . Energy Gun 6 | . 28 28 22 22 22 22 8 . . . . . . . . . . . . . . . Impact Weapon 2 | . . . . . . . 8 7 6 1 . . 4 5 . . . . . . . . Slashing Weapon 2 | . . . . . . . . 7 6 5 5 4 . 1 4 . . 2 9 8 8 5 Piercing Weapon 1 | . . . . . . . . . . . . . 6 1 5 5 5 5 . . . 1 Naked Turns . | . . . . . . . . . . . . . . . . . . . . . . . Heaviest Build 67 | 14 14 14 22 22 34 34 40 47 55 59 58 62 58 60 33 27 27 52 50 57 67 66 Greatest Support 70 | 20 20 20 35 35 35 35 50 50 56 61 58 58 58 59 38 28 35 70 57 57 67 67 Greatest Overweight (x) 5 | . . . 1 . . . . . . . . 1 . 1 1 . . 5 1 . . . Average Overweight (x) . | . . . . . . . . . . . . . . . . . . . . . . . Largest Inventory Capacity 15 | 8 8 8 8 8 15 15 15 15 15 15 15 15 15 15 5 5 5 10 10 10 10 10 Average Capacity 11 | 7 8 8 8 8 11 15 15 15 15 15 15 15 15 14 5 5 5 6 10 10 10 8 Most Carried 15 | 8 8 8 8 8 12 15 15 14 15 15 15 15 15 15 5 5 5 10 10 10 10 7 Average Carried 10 | 4 7 8 7 8 10 14 14 13 14 14 15 14 14 14 4 4 5 5 9 9 9 5 Final Capacity 15 | 8 8 8 8 8 15 15 15 15 15 15 15 15 15 5 5 5 5 10 10 10 10 5 Final Carried 15 | 8 8 8 8 8 12 15 15 13 15 15 15 15 15 5 5 5 5 10 10 10 6 2 Class Distribution -------------------- 33% | Mutant 21% | Scavenger-Sprinter 14% | Scavenger-Mutant 7% | Commander-Sprinter 6% | Hacker-Sprinter 6% | Scavenger-Skirmisher 5% | Sprinter Dominant Class ---------------- Mutant | -10/Materials Mutant | -10/Mines Mutant | -9/Materials Scavenger-Mutant | -9/Mines Scavenger-Mutant | -9/Exiles Scavenger-Skirmisher | -8/Mines Mutant | -8/Materials Mutant | -7/Factory Mutant | -6/Factory Mutant | -5/Factory Sprinter | -5/Upper Caves Sprinter | -5/Upper Caves Commander-Sprinter | -5/Warlord Commander-Sprinter | -4/Proximity Caves Scavenger-Sprinter | -4/Factory Scavenger-Sprinter | -4/Upper Caves Scavenger-Sprinter | -4/Upper Caves Hacker-Sprinter | -3/Research Scavenger-Sprinter | -3/Testing Scavenger-Sprinter | -2/Research Scavenger-Sprinter | -1/Access Scavenger-Sprinter | -1/Command Resources | -11 -10 -10 -9 -9 -9 -8 -8 -7 -6 -5 -5 -5 -5 -4 -4 -4 -4 -3 -3 -2 -1 -1 ----------- Run | Scr Mat Min Mat Min Exi Min Mat Fac Fac Fac Upp Upp War Pro Fac Upp Upp Res Tes Res Acc Com Matter Collected 2411 | 270 . 40 70 . . 40 110 . 140 181 24 26 152 220 101 63 59 661 . 199 55 . Remotely . | . . . . . . . . . . . . . . . . . . . . . . . Salvage Created 2658 | 103 . 99 177 44 . 62 212 . 176 262 . 80 47 50 101 39 59 1080 . 24 43 . Parts 131 | 4 . 3 6 6 . 6 6 . 11 17 . 2 . 2 10 1 2 47 . 5 3 . Haulers Intercepted . | . . . . . . . . . . . . . . . . . . . . . . . Recyclers Shooed 1 | . . . 1 . . . . . . . . . . . . . . . . . . . Parts Field Recycled . | . . . . . . . . . . . . . . . . . . . . . . . Retrieved Matter . | . . . . . . . . . . . . . . . . . . . . . . . Parts Self-Destructed 100 | . . . . . . . . . . . . 1 87 12 . . . . . . . . Prevented 8 | . . . . . . . . . . . . . 8 . . . . . . . . . Kills | -11 -10 -10 -9 -9 -9 -8 -8 -7 -6 -5 -5 -5 -5 -4 -4 -4 -4 -3 -3 -2 -1 -1 ------- Run | Scr Mat Min Mat Min Exi Min Mat Fac Fac Fac Upp Upp War Pro Fac Upp Upp Res Tes Res Acc Com Combat Hostiles Destroyed 42 | . . 2 3 3 . 4 2 . 5 7 . . 1 1 1 . . 13 . . . . Melee 27 | . . . . . . . . . 5 7 . . . 1 1 . . 13 . . . . Guns 13 | . . 2 3 3 . 4 1 . . . . . . . . . . . . . . . Classes Destroyed 14 | 2 . 1 . 1 . . 3 . 1 1 . . 1 . . 1 1 1 . 1 . . Builder 1 | . . . . . . . . . . . . . . . . . . 1 . . . . Tunneler 2 | 2 . . . . . . . . . . . . . . . . . . . . . . Recycler 6 | 1 . . 1 . . . 1 . . . . . . . . . . 3 . . . . Operator 1 | . . . . . . . . . . . . . . . . . . . . 1 . . Watcher 3 | . . . . . . . 1 . . . . . . . 1 . . . . . 1 . Swarmer 20 | . . . . 3 . 4 . . 3 1 . . . . . . . 9 . . . . Cutter 4 | . . . . . . . . . . 4 . . . . . . . . . . . . Grunt 5 | . . 2 3 . . . . . . . . . . . . . . . . . . . Protector 1 | . . . . . . . . . . . . . 1 . . . . . . . . . Sentry 2 | . . . . . . . 1 . 1 . . . . . . . . . . . . . Hunter 1 | . . . . . . . 1 . . . . . . . . . . . . . . . Programmer 9 | . . . . . . . . . 1 2 . . . 1 1 . . 4 . . . . Decomposer 2 | . . . . . . . . . . . . . . . . 2 . . . . . . Samaritan 1 | . . . . . . . . . . . . . . . . . 1 . . . . . Best Kill Streak 7 | 3 . 2 3 3 . 4 2 . 2 3 . . 1 1 1 . . 7 . 1 1 . Combat Bots Only 5 | . . 2 3 3 . 4 1 . 2 3 . . 1 1 1 . . 5 . . . . Max Kills in Single Turn 2 | 1 . 1 1 1 . 2 1 . 1 1 . . 1 1 1 1 1 2 . 1 1 . Gunslinging 1 | . . . . . . 1 . . . . . . . . . . . . . . . . Exploded . | . . . . . . . . . . . . . . . . . . . . . . . Melee 2 | . . . . . . . . . 1 1 . . . 1 1 . . 2 . . . . Uniques/NPCs Destroyed . | . . . . . . . . . . . . . . . . . . . . . . . Combat | -11 -10 -10 -9 -9 -9 -8 -8 -7 -6 -5 -5 -5 -5 -4 -4 -4 -4 -3 -3 -2 -1 -1 -------- Run | Scr Mat Min Mat Min Exi Min Mat Fac Fac Fac Upp Upp War Pro Fac Upp Upp Res Tes Res Acc Com Damage Taken 10660 | . . 172 122 102 . 203 344 . 620 952 . 25 46 449 766 . . 2858 88 . 1393 2520 Core 2737 | . . 13 20 20 . 74 67 . 104 116 . 25 . 22 38 . . 617 20 . 232 1369 Absorbed by Shields 49 | . . . . . . . . . . . . . . 49 . . . . . . . . Regen/Repaired (Parts) 85 | . . . . . . . . . 13 . . . . . . . . 72 . . . . Core Remaining (%) 86 | 100 . 94 . . . 71 87 100 87 . . . . 83 . . 96 . 51 100 . . Volleys Fired 72 | 6 . 7 11 7 . 10 16 . . . . 2 . 10 . . . . . . . 3 Largest 2 | 2 . 2 2 2 . 2 2 . . . . 1 . 1 . . . . . . . 1 Hottest 115 | 90 . 90 115 115 . 90 112 . . . . 46 . 46 . . . . . . . 52 Shots Fired 129 | 12 . 14 22 14 . 20 32 . . . . 2 . 10 . . . . . . . 3 Gun 114 | 12 . 14 22 14 . 20 32 . . . . . . . . . . . . . . . Cannon . | . . . . . . . . . . . . . . . . . . . . . . . Launcher 15 | . . . . . . . . . . . . 2 . 10 . . . . . . . 3 Special . | . . . . . . . . . . . . . . . . . . . . . . . Kinetic . | . . . . . . . . . . . . . . . . . . . . . . . Thermal 114 | 12 . 14 22 14 . 20 32 . . . . . . . . . . . . . . . Explosive 15 | . . . . . . . . . . . . 2 . 10 . . . . . . . 3 Electromagnetic . | . . . . . . . . . . . . . . . . . . . . . . . Robot Hit Streak 18 | 7 . 13 18 4 . 4 8 . . . . . . . . . . . . . . 4 Robot Miss Streak 3 | 1 . 1 3 2 . 3 2 . . . . . . . . . . . . . . . Penetration Max . | . . . . . . . . . . . . . . . . . . . . . . . Secondary Targets 3 | . . 1 1 . . 1 . . . . . . . . . . . . . . . . Max Gunslinging Chain 1 | . . 1 1 . . 1 . . . . . . . . . . . . . . . . Shots Hit Robots 181 | 8 . 13 14 8 . 9 21 . 19 13 . 3 1 11 7 2 1 33 . 1 4 13 Core Hits 71 | 4 . 5 7 3 . 4 6 . 6 5 . 1 . 2 3 1 1 15 . . 2 6 Critical Kills 1 | . . . . . . . . . 1 . . . . . . . . . . . . . Critical Parts Destroyed . | . . . . . . . . . . . . . . . . . . . . . . . Critical Strikes 7 | . . . . . . . 2 . 1 . . . . 2 1 . . 1 . . . . Burn 2 | . . . . . . . 2 . . . . . . . . . . . . . . . Smash 1 | . . . . . . . . . 1 . . . . . . . . . . . . . Sever 1 | . . . . . . . . . . . . . . 1 . . . . . . . . Impale 3 | . . . . . . . . . . . . . . 1 1 . . 1 . . . . Melee Attacks 276 | . . . . . . . 5 . 52 48 . 4 3 15 30 3 1 80 5 1 19 10 Impact 19 | . . . . . . . 5 . 11 . . . 3 . . . . . . . . . Slashing 148 | . . . . . . . . . 41 48 . 4 . 3 6 . . 15 5 1 19 6 Piercing 109 | . . . . . . . . . . . . . . 12 24 3 1 65 . . . 4 Sneak Attacks 9 | . . . . . . . . . . . . . . . . 2 1 5 . 1 . . Combat Hostiles 1 | . . . . . . . . . . . . . . . . . . 1 . . . . Follow-up Attacks 18 | . . . . . . . . . 7 . . . 1 3 . . . 4 . . 2 1 Damage Inflicted 6626 | 108 . 150 186 137 . 106 299 . 724 747 . 366 44 309 258 155 67 1784 . 131 196 859 Guns 986 | 108 . 150 186 137 . 106 299 . . . . . . . . . . . . . . . Cannons . | . . . . . . . . . . . . . . . . . . . . . . . Explosions 246 | . . . . . . . . . . . . . . . . . . . . . . 246 Melee 5394 | . . . . . . . . . 724 747 . 366 44 309 258 155 67 1784 . 131 196 613 Ramming . | . . . . . . . . . . . . . . . . . . . . . . . Kinetic . | . . . . . . . . . . . . . . . . . . . . . . . Thermal 986 | 108 . 150 186 137 . 106 299 . . . . . . . . . . . . . . . Explosive 246 | . . . . . . . . . . . . . . . . . . . . . . 246 Electromagnetic . | . . . . . . . . . . . . . . . . . . . . . . . Impact 297 | . . . . . . . . . 253 . . . 44 . . . . . . . . . Slashing 2319 | . . . . . . . . . 471 747 . 366 . 64 . . . 72 . 131 196 272 Piercing 2778 | . . . . . . . . . . . . . . 245 258 155 67 1712 . . . 341 Highest Corruption 40 | . . . . . . . . . . 1 1 1 1 . 4 4 4 40 35 . . 18 Average Corruption 7 | . . . . . . . . . . 1 1 1 1 . 3 4 4 11 34 . . 7 Corruption Purged 6 | . . . . . . . . . . . . . . . . . . 5 1 . . . Corruption Blocked . | . . . . . . . . . . . . . . . . . . . . . . . Effects 40 | . . . . . . . . . . 3 . 1 . . 1 4 . 25 5 . . 1 Message Errors 9 | . . . . . . . . . . . . . . . . . . 6 2 . . 1 Matter Fused 10 | . . . . . . . . . . . . 1 . . 1 2 . 5 1 . . . Heat Flow Errors 4 | . . . . . . . . . . 1 . . . . . 1 . 2 . . . . Energy Discharges 7 | . . . . . . . . . . 1 . . . . . . . 6 . . . . Data Loss (minor) 5 | . . . . . . . . . . . . . . . . 1 . 4 . . . . Data Loss (major) 2 | . . . . . . . . . . 1 . . . . . . . 1 . . . . Misdirections 3 | . . . . . . . . . . . . . . . . . . 1 2 . . . Overload Shots . | . . . . . . . . . . . . . . . . . . . . . . . Overflow Damage 1144 | . . . . . . . . . 30 147 . 196 14 31 46 92 . 487 . 96 5 . Projectiles . | . . . . . . . . . . . . . . . . . . . . . . . Explosions . | . . . . . . . . . . . . . . . . . . . . . . . Melee 1144 | . . . . . . . . . 30 147 . 196 14 31 46 92 . 487 . 96 5 . Knockbacks . | . . . . . . . . . . . . . . . . . . . . . . . Impact . | . . . . . . . . . . . . . . . . . . . . . . . Kinetic . | . . . . . . . . . . . . . . . . . . . . . . . Secondary . | . . . . . . . . . . . . . . . . . . . . . . . Self-Inflicted Damage . | . . . . . . . . . . . . . . . . . . . . . . . Shots . | . . . . . . . . . . . . . . . . . . . . . . . Rammed . | . . . . . . . . . . . . . . . . . . . . . . . Targets Rammed . | . . . . . . . . . . . . . . . . . . . . . . . Kicked . | . . . . . . . . . . . . . . . . . . . . . . . Crushed . | . . . . . . . . . . . . . . . . . . . . . . . Highest Temperature 357 | 150 . 306 195 357 . 234 25 . . 147 . . . 106 186 . . 86 . 17 . . Average Temperature 93 | 69 . 156 83 181 . 108 11 . . 82 . . . 63 69 . . 25 . 10 . . Received Heat Transfer 633 | . . 105 69 . . . 57 . 60 18 . 9 9 18 . . . 36 . . 45 207 Effects 1 | . . 1 . . . . . . . . . . . . . . . . . . . . Energy Bleed 1 | . . 1 . . . . . . . . . . . . . . . . . . . . Siege Activations . | . . . . . . . . . . . . . . . . . . . . . . . Robots Corrupted . | . . . . . . . . . . . . . . . . . . . . . . . Combat Hostiles . | . . . . . . . . . . . . . . . . . . . . . . . Parts Fried 4 | . . . . . . . . . . . . . 4 . . . . . . . . . Impact Corruptions 2 | . . . . . . . . . . . . . 2 . . . . . . . . . Robots Melted 1 | . . . . . . . 1 . . . . . . . . . . . . . . . Combat Hostiles 1 | . . . . . . . 1 . . . . . . . . . . . . . . . Parts Melted 5 | . . 2 . . . . 1 . . . . . . . . . . 2 . . . . Heat Transferred 2467 | 285 . 397 399 273 . 261 852 . . . . . . . . . . . . . . . Parts Sabotaged . | . . . . . . . . . . . . . . . . . . . . . . . Parts Stolen . | . . . . . . . . . . . . . . . . . . . . . . . Parts Stripped . | . . . . . . . . . . . . . . . . . . . . . . . Power Chain Reactions . | . . . . . . . . . . . . . . . . . . . . . . . Missiles Intercepted . | . . . . . . . . . . . . . . . . . . . . . . . Alert | -11 -10 -10 -9 -9 -9 -8 -8 -7 -6 -5 -5 -5 -5 -4 -4 -4 -4 -3 -3 -2 -1 -1 ------- Run | Scr Mat Min Mat Min Exi Min Mat Fac Fac Fac Upp Upp War Pro Fac Upp Upp Res Tes Res Acc Com Peak Influence 1694 | 15 9 68 120 116 . 105 115 6 122 321 . . . . 232 . . 533 1694 1170 1222 781 Initial 1100 | . 9 3 . 46 . . 40 6 2 58 . . . . 31 . . 121 299 1100 701 781 Average 220 | 4 9 23 52 62 . 99 50 6 47 212 . . . . 86 . . 210 1651 1138 918 736 Maximum Alert Level 5 | . . . . . . . . . . 1 . . . . 1 . . 2 5 4 4 3 Low Security (%) 66 | 100 100 100 100 100 . 100 100 100 100 24 . . . . 98 . . 42 . . . . Level 1 20 | . . . . . . . . . . 75 . . . . 1 . . 52 1 . . . Level 2 1 | . . . . . . . . . . . . . . . . . . 5 . . . 22 Level 3 7 | . . . . . . . . . . . . . . . . . . . . . 90 77 Level 4 3 | . . . . . . . . . . . . . . . . . . . . 100 10 . Level 5 . | . . . . . . . . . . . . . . . . . . . . . . . High Security . | . . . . . . . . . . . . . . . . . . . . . . . Max Security 1 | . . . . . . . . . . . . . . . . . . . 98 . . . Squads Dispatched 39 | . 1 . 1 . . . 3 . 5 5 . . . . 4 . . 7 . 4 8 1 Investigation 8 | . 1 . 1 . . . 1 . . . . . . . 1 . . 2 . 1 1 . Extermination 6 | . . . . . . . . . 1 2 . . . . 1 . . 2 . . . . Reinforcement 21 | . . . . . . . 2 . 4 2 . . . . 2 . . 3 . 3 4 1 Assault . | . . . . . . . . . . . . . . . . . . . . . . . Garrison 4 | . . . . . . . . . . 1 . . . . . . . . . . 3 . Intercept . | . . . . . . . . . . . . . . . . . . . . . . . Searches Triggered . | . . . . . . . . . . . . . . . . . . . . . . . Construction Impeded . | . . . . . . . . . . . . . . . . . . . . . . . Haulers Reinforced . | . . . . . . . . . . . . . . . . . . . . . . . Active Scanning Responses . | . . . . . . . . . . . . . . . . . . . . . . . Cargo Convoy Interrupts 1 | . . . . . . . . . . . . . . . . . . 1 . . . . Stealth | -11 -10 -10 -9 -9 -9 -8 -8 -7 -6 -5 -5 -5 -5 -4 -4 -4 -4 -3 -3 -2 -1 -1 --------- Run | Scr Mat Min Mat Min Exi Min Mat Fac Fac Fac Upp Upp War Pro Fac Upp Upp Res Tes Res Acc Com Distress Signals 13 | . . . . . . . 2 . . 3 . . 2 . . . . 5 . . 1 . Communications Jammed . | . . . . . . . . . . . . . . . . . . . . . . . Distress Signals . | . . . . . . . . . . . . . . . . . . . . . . . Times Spotted 258 | . 1 11 4 3 . 4 9 . 7 35 . 6 31 16 22 3 1 40 5 10 45 5 Peak Tracking Total 17 | . 1 8 3 3 . 4 2 . 3 9 . 4 17 7 10 4 2 8 5 5 14 5 Tactical Retreats 44 | . . 1 . . . . 1 . 1 7 . 4 . 2 6 2 . 10 . 1 9 . Traps | -11 -10 -10 -9 -9 -9 -8 -8 -7 -6 -5 -5 -5 -5 -4 -4 -4 -4 -3 -3 -2 -1 -1 ------- Run | Scr Mat Min Mat Min Exi Min Mat Fac Fac Fac Upp Upp War Pro Fac Upp Upp Res Tes Res Acc Com Traps Triggered 8 | . . . . . . . 1 . . . . . . . 1 . . . 4 . 2 . Indirectly . | . . . . . . . . . . . . . . . . . . . . . . . Trap Hack Attempts . | . . . . . . . . . . . . . . . . . . . . . . . Triggered . | . . . . . . . . . . . . . . . . . . . . . . . Disarmed . | . . . . . . . . . . . . . . . . . . . . . . . Reprogrammed . | . . . . . . . . . . . . . . . . . . . . . . . Reused 3 | . . 3 . . . . . . . . . . . . . . . . . . . . Traps Extracted . | . . . . . . . . . . . . . . . . . . . . . . . Installed 5 | . . 5 . . . . . . . . . . . . . . . . . . . . Triggered 14 | . . . . . . . . . . . . . 12 . . . . 2 . . . . Machines | -11 -10 -10 -9 -9 -9 -8 -8 -7 -6 -5 -5 -5 -5 -4 -4 -4 -4 -3 -3 -2 -1 -1 ---------- Run | Scr Mat Min Mat Min Exi Min Mat Fac Fac Fac Upp Upp War Pro Fac Upp Upp Res Tes Res Acc Com Machines Disabled 5 | . . . 1 . . . . . . . . . . . . 1 . . 1 . 1 1 Max in Single Turn 1 | . . . . . . . . . . . . . . . . 1 . . 1 . 1 1 Garrison Access 1 | . . . . . . . . . . . . . . . . . . 1 . . . . Machines Sabotaged . | . . . . . . . . . . . . . . . . . . . . . . . Garrisons Compromised 1 | . . . . . . . . . . . . . . . . . . 1 . . . . Overloaded Fab Kills . | . . . . . . . . . . . . . . . . . . . . . . . Hacking | -11 -10 -10 -9 -9 -9 -8 -8 -7 -6 -5 -5 -5 -5 -4 -4 -4 -4 -3 -3 -2 -1 -1 --------- Run | Scr Mat Min Mat Min Exi Min Mat Fac Fac Fac Upp Upp War Pro Fac Upp Upp Res Tes Res Acc Com Machines Accessed 65 | . 2 . 3 . 2 . 5 . 3 6 . 1 5 . 6 . . 14 . 2 13 3 Terminals 40 | . 2 . 3 . . . 3 . 1 4 . . . . 3 . . 8 . 2 12 2 Fabricators 2 | . . . . . . . . . . . . . . . 1 . . 1 . . . . Repair Stations 4 | . . . . . . . . . 1 . . . . . . . . 2 . . . 1 Recycling Units . | . . . . . . . . . . . . . . . . . . . . . . . Scanalyzers 5 | . . . . . . . 1 . . 1 . . . . 1 . . 2 . . . . Garrison Access 6 | . . . . . . . 1 . 1 1 . . . . 1 . . 1 . . 1 . Total Hacks 149 | . 4 . 13 . 2 . 10 . 6 16 . 1 18 . 18 . . 35 . 3 17 6 Successful 79 | . 1 . 7 . 2 . 8 . 3 6 . 1 18 . 13 . . 15 . 1 3 1 Failed 70 | . 3 . 6 . . . 2 . 3 10 . . . . 5 . . 20 . 2 14 5 Catastrophic 20 | . 1 . 2 . . . . . 1 4 . . . . 1 . . 4 . 1 5 1 Database Lockouts . | . . . . . . . . . . . . . . . . . . . . . . . Manual 70 | . 2 . 11 . 1 . 3 . 1 12 . . . . 8 . . 20 . 1 11 . Terminals 86 | . 4 . 13 . . . 4 . 2 8 . . . . 12 . . 19 . 3 16 5 Fabricators 5 | . . . . . . . . . . . . . . . 3 . . 2 . . . . Repair Stations 11 | . . . . . . . . . 3 . . . . . . . . 7 . . . 1 Recycling Units . | . . . . . . . . . . . . . . . . . . . . . . . Scanalyzers 13 | . . . . . . . 4 . . 4 . . . . 2 . . 3 . . . . Garrison Access 13 | . . . . . . . 2 . 1 4 . . . . 1 . . 4 . . 1 . Terminal Hacks 47 | . 1 . 7 . 2 . 3 . . 1 . 1 18 . 7 . . 2 . 1 3 1 Record 13 | . . . . . 1 . . . . . . . 6 . 4 . . 2 . . . . Part Schematic 3 | . . . 3 . . . . . . . . . . . . . . . . . . . Prototype ID Bank 14 | . . . 3 . . . . . . . . . 11 . . . . . . . . . Open Door 6 | . . . . . . . . . . . . 1 1 . . . . . . . 3 1 Open DSF 1 | . . . . . . . . . . . . . . . . . . . . 1 . . Branch Access Points 2 | . . . 1 . . . . . . 1 . . . . . . . . . . . . Alert Level 3 | . 1 . . . . . 1 . . . . . . . 1 . . . . . . . Unreport Threat 1 | . . . . . . . 1 . . . . . . . . . . . . . . . Locate Traps 1 | . . . . . . . 1 . . . . . . . . . . . . . . . Registered Components 1 | . . . . . . . . . . . . . . . 1 . . . . . . . Registered Prototypes 1 | . . . . . . . . . . . . . . . 1 . . . . . . . EX-Prototype ID Bank 1 | . . . . . 1 . . . . . . . . . . . . . . . . . Fabricator Hacks 5 | . . . . . . . . . . . . . . . 3 . . 2 . . . . Network Status 1 | . . . . . . . . . . . . . . . 1 . . . . . . . Load Schematic 2 | . . . . . . . . . . . . . . . 1 . . 1 . . . . Build 2 | . . . . . . . . . . . . . . . 1 . . 1 . . . . Repair Station Hacks 8 | . . . . . . . . . 2 . . . . . . . . 6 . . . . Scan Component 4 | . . . . . . . . . 1 . . . . . . . . 3 . . . . Repair 3 | . . . . . . . . . 1 . . . . . . . . 2 . . . . Refit 1 | . . . . . . . . . . . . . . . . . . 1 . . . . Recycling Unit Hacks . | . . . . . . . . . . . . . . . . . . . . . . . Scanalyzer 12 | . . . . . . . 4 . . 4 . . . . 2 . . 2 . . . . Insert Component 6 | . . . . . . . 2 . . 2 . . . . 1 . . 1 . . . . Analyze 6 | . . . . . . . 2 . . 2 . . . . 1 . . 1 . . . . Garrison Access Hacks . | . . . . . . . . . . . . . . . . . . . . . . . Unauthorized Hacks 7 | . . . . . . . 1 . 1 1 . . . . 1 . . 3 . . . . Terminals 3 | . . . . . . . . . . . . . . . 1 . . 2 . . . . Assimilate 3 | . . . . . . . . . . . . . . . 1 . . 2 . . . . Fabricators . | . . . . . . . . . . . . . . . . . . . . . . . Repair Stations . | . . . . . . . . . . . . . . . . . . . . . . . Recycling Units . | . . . . . . . . . . . . . . . . . . . . . . . Scanalyzers . | . . . . . . . . . . . . . . . . . . . . . . . Garrison Access 4 | . . . . . . . 1 . 1 1 . . . . . . . 1 . . . . Reprogram 1 | . . . . . . . 1 . . . . . . . . . . . . . . . Watchers 2 | . . . . . . . . . 1 1 . . . . . . . . . . . . Jam 1 | . . . . . . . . . . . . . . . . . . 1 . . . . Data Cores Recovered . | . . . . . . . . . . . . . . . . . . . . . . . Used . | . . . . . . . . . . . . . . . . . . . . . . . Hacking Detections 50 | . 2 . 3 . . . 5 . 2 6 . . . . 6 . . 12 . 1 11 2 Full Trace Events 5 | . 1 . 1 . . . . . . . . . . . 1 . . 1 . . 1 . Feedback Events . | . . . . . . . . . . . . . . . . . . . . . . . Feedback Blocked . | . . . . . . . . . . . . . . . . . . . . . . . Robot Schematics Acquired . | . . . . . . . . . . . . . . . . . . . . . . . Robots Built . | . . . . . . . . . . . . . . . . . . . . . . . Authchips . | . . . . . . . . . . . . . . . . . . . . . . . Time . | . . . . . . . . . . . . . . . . . . . . . . . Total Robot Build Rating . | . . . . . . . . . . . . . . . . . . . . . . . Part Schematics Acquired 9 | . . . 3 . . . 2 . . 2 . . . . 1 . . 1 . . . . Parts Built 4 | . . . . . . . . . . . . . . . 2 . . 2 . . . . Authchips . | . . . . . . . . . . . . . . . . . . . . . . . Time 137 | . . . . . . . . . . . . . . . 73 . . 64 . . . . Total Part Build Rating 22 | . . . . . . . . . . . . . . . 6 . . 16 . . . . Parts Repaired 3 | . . . . . . . . . 1 . . . . . . . . 2 . . . . Time 140 | . . . . . . . . . 16 . . . . . . . . 124 . . . . Parts Recycled . | . . . . . . . . . . . . . . . . . . . . . . . Recycled Matter . | . . . . . . . . . . . . . . . . . . . . . . . Retrieved Matter . | . . . . . . . . . . . . . . . . . . . . . . . Retrieved Components . | . . . . . . . . . . . . . . . . . . . . . . . Parts Scanalyzed 6 | . . . . . . . 2 . . 2 . . . . 1 . . 1 . . . . Part Schematics Acquired 6 | . . . . . . . 2 . . 2 . . . . 1 . . 1 . . . . Parts Damaged . | . . . . . . . . . . . . . . . . . . . . . . . Bothacking | -11 -10 -10 -9 -9 -9 -8 -8 -7 -6 -5 -5 -5 -5 -4 -4 -4 -4 -3 -3 -2 -1 -1 ------------ Run | Scr Mat Min Mat Min Exi Min Mat Fac Fac Fac Upp Upp War Pro Fac Upp Upp Res Tes Res Acc Com Used RIF Installer . | . . . . . . . . . . . . . . . . . . . . . . . Robots Hacked . | . . . . . . . . . . . . . . . . . . . . . . . Non-combat . | . . . . . . . . . . . . . . . . . . . . . . . Combat . | . . . . . . . . . . . . . . . . . . . . . . . Robot Hacks Applied . | . . . . . . . . . . . . . . . . . . . . . . . Relay Couplers Released . | . . . . . . . . . . . . . . . . . . . . . . . Fabnet Peak Effective % . | . . . . . . . . . . . . . . . . . . . . . . . Robots Rewired 4 | . . . . . . . . . . . . . 4 . . . . . . . . . Allies Hacked 2 | . . . . . . . . . . . . . . 2 . . . . . . . . Hacks Repelled . | . . . . . . . . . . . . . . . . . . . . . . . Allies | -11 -10 -10 -9 -9 -9 -8 -8 -7 -6 -5 -5 -5 -5 -4 -4 -4 -4 -3 -3 -2 -1 -1 -------- Run | Scr Mat Min Mat Min Exi Min Mat Fac Fac Fac Upp Upp War Pro Fac Upp Upp Res Tes Res Acc Com Total Allies 10 | . . 3 . . . . . . . . . . 4 . 1 . . 2 . . . . Largest Group 4 | . . 2 1 . . . . . . . . . 4 4 1 . . 1 . . . . Highest-Rated Group 223 | . . 53 31 . . . . . . . . . 223 223 26 . . 26 . . . . Highest-Rated Ally 68 | . . 31 31 . . . . . . . . . 68 68 26 . . 26 . . . . Total Orders 2 | . . . . . . . . . . 1 . . . . . . . 1 . . . . ROAM 1 | . . . . . . . . . . . . . . . . . . 1 . . . . EXPLORE 1 | . . . . . . . . . . 1 . . . . . . . . . . . . Ally Attacks 45 | . . 2 6 . . . . . . . . . 14 23 . . . . . . . . Total Damage 2136 | . . 20 63 . . . . . . . . . 1005 1048 . . . . . . . . Kills 12 | . . 1 . . . . . . . . . . 6 5 . . . . . . . . Allies Corrupted . | . . . . . . . . . . . . . . . . . . . . . . . Allies Melted . | . . . . . . . . . . . . . . . . . . . . . . . Intel | -11 -10 -10 -9 -9 -9 -8 -8 -7 -6 -5 -5 -5 -5 -4 -4 -4 -4 -3 -3 -2 -1 -1 ------- Run | Scr Mat Min Mat Min Exi Min Mat Fac Fac Fac Upp Upp War Pro Fac Upp Upp Res Tes Res Acc Com Robot Analysis Total . | . . . . . . . . . . . . . . . . . . . . . . . Derelict Logs Recovered 9 | . . 3 . 1 . . . . . . 1 1 . 3 . . . . . . . . Drone Launches 6 | . . . . . . . . . . 6 . . . . . . . . . . . . Drone Recoveries . | . . . . . . . . . . . . . . . . . . . . . . . Exploration | -11 -10 -10 -9 -9 -9 -8 -8 -7 -6 -5 -5 -5 -5 -4 -4 -4 -4 -3 -3 -2 -1 -1 ------------- Run | Scr Mat Min Mat Min Exi Min Mat Fac Fac Fac Upp Upp War Pro Fac Upp Upp Res Tes Res Acc Com Turns Passed 9128 | 97 126 772 154 278 301 266 820 10 743 1013 96 253 587 494 760 149 33 1307 91 182 490 106 Spaces Moved 15013 | 52 98 527 91 176 246 182 780 16 678 1511 311 647 1182 991 1294 424 97 2082 358 898 1992 380 Core 8 | 3 . . . . . . . . . . . . . . . . . 1 . . . 4 Treads 12 | . . . . . . . . . . . . . . . . . . 12 . . . . Legs 1536 | 49 98 527 71 176 246 182 185 . . . . . . . . . . 2 . . . . Wheels 80 | . . . 20 . . . . . . . . . . . 60 . . . . . . . Hover . | . . . . . . . . . . . . . . . . . . . . . . . Flight 13377 | . . . . . . . 595 16 678 1511 311 647 1182 991 1234 424 97 2067 358 898 1992 376 Fastest Speed 10 | 50 120 120 95 120 120 120 50 50 39 30 30 30 30 22 14 24 23 12 12 12 10 12 Average Speed 36 | 115 120 120 114 120 120 120 66 50 42 32 30 30 30 31 31 24 23 27 12 12 11 15 Slowest Speed 480 | 120 120 120 120 120 120 120 120 50 50 39 30 90 30 105 110 24 24 480 97 12 15 50 Overloaded Moves . | . . . . . . . . . . . . . . . . . . . . . . . Propulsion Burnouts . | . . . . . . . . . . . . . . . . . . . . . . . Robots Hopped 93 | . . . . . . . . . 2 11 . 1 2 1 4 . . 23 1 29 16 3 Cave-ins Triggered . | . . . . . . . . . . . . . . . . . . . . . . . Exploration Rate (%) 40 | 4 18 80 8 44 60 48 54 1 6 31 62 69 93 82 27 62 17 45 40 13 48 18 Regions Visited 22 Branch Regions 12 Pre-discovered Areas 4 | . . 2 . 1 . . . . . . . . . 1 . . . . . . . . Known Exits Taken 7 | . . . 1 . . . . . . 1 . 1 . 1 1 1 1 . . . . . Unknown Exits Taken 15 | 1 1 1 . 1 1 1 1 1 1 . 1 . 1 . . . . 1 1 1 1 . Scrap Searched 9 | . . 1 . 1 . . . . . . 1 1 . 1 . 3 1 . . . . . Spaces Dug 145 | . . . . . . . 1 . 15 22 . 38 . 25 11 . . 25 2 . 6 . Terrain Destroyed 202 | . . . . . . . 1 . 15 22 . 38 . 82 11 . . 25 2 . 6 . Melee 83 | . . . . . . . 1 . 15 22 . 1 . . 11 . . 25 2 . 6 . Projectile . | . . . . . . . . . . . . . . . . . . . . . . . AOE 119 | . . . . . . . . . . . . 37 . 82 . . . . . . . . Terrain Rammed . | . . . . . . . . . . . . . . . . . . . . . . . Walls Destroyed . | . . . . . . . . . . . . . . . . . . . . . . . Machines Disabled . | . . . . . . . . . . . . . . . . . . . . . . . Actions | -11 -10 -10 -9 -9 -9 -8 -8 -7 -6 -5 -5 -5 -5 -4 -4 -4 -4 -3 -3 -2 -1 -1 --------- Run | Scr Mat Min Mat Min Exi Min Mat Fac Fac Fac Upp Upp War Pro Fac Upp Upp Res Tes Res Acc Com Total 18075 | 73 111 654 123 229 250 211 1058 17 1070 1924 312 695 1410 1148 1596 466 104 2669 397 941 2211 406 Wait 2236 | . . 108 2 45 . 13 184 . 324 327 . 26 175 117 212 38 4 424 8 43 184 2 Move 14832 | 51 97 526 90 175 245 181 779 15 673 1487 310 644 1177 988 1285 423 96 2039 355 857 1963 376 Hop 65 | . . . . . . . . . 2 11 . 1 2 1 4 . . 19 1 11 12 1 Pick Up 126 | 9 6 1 4 1 1 5 26 . 11 11 . 5 8 3 5 1 . 16 2 5 6 . Fast Attach 110 | 6 1 1 4 . . . 6 . 1 5 . 4 6 . 20 . 1 41 3 4 6 1 Attach 55 | 1 . . . . . . 5 2 3 8 . 2 1 6 3 . . 8 . 2 7 7 Detach 21 | . . . . . . . 3 . . 2 . 1 . 2 2 . . 4 . 2 1 4 Swap 76 | . . 2 3 . 4 . 5 . 5 9 1 . 1 3 7 . 1 18 1 7 8 1 Drop 167 | . 7 4 9 1 . 2 30 . 10 13 1 6 13 5 16 1 1 26 2 9 9 2 Fire 72 | 6 . 7 11 7 . 10 16 . . . . 2 . 10 . . . . . . . 3 Melee 241 | . . . . . . . 4 . 41 48 . 4 2 12 24 3 1 74 3 1 15 9 Ram . | . . . . . . . . . . . . . . . . . . . . . . . Kick . | . . . . . . . . . . . . . . . . . . . . . . . Crush . | . . . . . . . . . . . . . . . . . . . . . . . Escape Stasis 41 | . . . . . . . . . . 1 . . . . 18 . . . 22 . . . Rewire 26 | . . . . . . . . . . . . . 25 1 . . . . . . . . Trap 5 | . . 5 . . . . . . . . . . . . . . . . . . . . Miscellaneous 2 | . . . . . . . . . . 2 . . . . . . . . . . . . Route ------- -11/Scrapyard -10/Materials -10/Mines (discovered 2 exits: *Mat x2) -9/Materials (discovered 3 exits: *Min x2 / Sto) -9/Mines -9/Exiles -8/Mines -8/Materials -7/Factory -6/Factory -5/Factory (discovered 2 exits: *Upp x2) -5/Upper Caves -5/Upper Caves (discovered 2 exits: *Fac / *War) -5/Warlord -4/Proximity Caves -4/Factory -4/Upper Caves -4/Upper Caves -3/Research -3/Testing -2/Research -1/Access -1/Command History --------- Turn | Location | Event 11 | -11/Scrapyard | Discovered new exit (range 16) 98 | -11/Scrapyard | Entered Materials 171 | -10/Materials | Discovered new exit (range 15) 224 | -10/Materials | Entered Mines 269 | -10/Mines | Discovered new exit (range 9) 311 | -10/Mines | Build established: Mutant 441 | -10/Mines | Learned location of Zion (-6) 451 | -10/Mines | Found a hidden stash of uninstalled traps 540 | -10/Mines | Joined a pair of Derelicts in attacking an 0b10 outpost 598 | -10/Mines | Learned location of Mines (-9) 793 | -10/Mines | Assembled infested the area 850 | -10/Mines | Discovered new exit (range 14) 907 | -10/Mines | Received a Mining Laser from a helpful Derelict 996 | -10/Mines | Entered Materials 996 | -9/Materials | Accompanied by 1 ally 996 | -9/Materials | Evolved 2 slots: Propulsion x1, Utility x1 997 | -9/Materials | Identified exit to Mines 1033 | -9/Materials | Identified exit to Storage 1150 | -9/Materials | Entered Mines 1178 | -9/Mines | Learned location of Storage (-9) 1393 | -9/Mines | Build established: Scavenger-Mutant 1423 | -9/Mines | Deemed a non-threat by the Exiles lab entrance 1423 | -9/Mines | Discovered new exit (range 5) 1428 | -9/Mines | Entered Exiles 1457 | -9/Exiles | Met 8R-AWN 1478 | -9/Exiles | Met EX-HEX 1511 | -9/Exiles | Met EX-BIN 1528 | -9/Exiles | Aligned with FarCom system 1529 | -9/Exiles | Given EX-Vault access code 1557 | -9/Exiles | Opened EX-Vault 1566 | -9/Exiles | Found Flying Fortress v7 1596 | -9/Exiles | Warned to stay clear of 0b10 Research branches 1647 | -9/Exiles | Met EX-DEC 1711 | -9/Exiles | Discovered new exit (range 14) 1729 | -9/Exiles | Left Exiles lab with Flying Fortress v7 1729 | -9/Exiles | Entered Mines 1967 | -8/Mines | Discovered new exit (range 15) 1995 | -8/Mines | Entered Materials 1995 | -8/Materials | Evolved 2 slots: Propulsion x1, Utility x1 2031 | -8/Materials | Build established: Scavenger-Skirmisher 2311 | -8/Materials | Lost 4 parts (3n1u) 2700 | -8/Materials | Build established: Mutant 2813 | -8/Materials | Discovered new exit (range 5) 2815 | -8/Materials | Entered Factory 2815 | -7/Factory | Evolved 2 slots: Utility x2 2819 | -7/Factory | Discovered new exit (range 13) 2825 | -7/Factory | Entered another Factory area 2825 | -6/Factory | Evolved 2 slots: Propulsion x1, Utility x1 2880 | -6/Factory | Repaired Cooling System 3566 | -6/Factory | Discovered new exit (range 3) 3568 | -6/Factory | Entered another Factory area 3568 | -5/Factory | Evolved 2 slots: Power x1, Propulsion x1 4115 | -5/Factory | Spotted B-75 Beast 4238 | -5/Factory | Lost 4 parts (1n3u) 4267 | -5/Factory | Identified exit to Upper Caves 4514 | -5/Factory | Build established: Scavenger-Sprinter 4554 | -5/Factory | Garrison activated, responded to threat 4581 | -5/Factory | Entered Upper Caves 4633 | -5/Upper Caves | Spotted B-75 Beast 4673 | -5/Upper Caves | Discovered new exit (range 13) 4677 | -5/Upper Caves | Entered another Upper Caves area 4678 | -5/Upper Caves | Identified exit to Warlord 4688 | -5/Upper Caves | Discovered new exit (range 10) 4736 | -5/Upper Caves | Attracted the attention of an 0b10 checkpoint 4773 | -5/Upper Caves | Encountered a Warlord checkpoint 4779 | -5/Upper Caves | Spotted B-75 Beast 4876 | -5/Upper Caves | Learned Factory security intel 4930 | -5/Upper Caves | Entered Warlord 4937 | -5/Warlord | Build established: Sprinter 4940 | -5/Warlord | System corruption cleaned by Quarantine Array 5025 | -5/Warlord | Visited the Vortex Lab 5047 | -5/Warlord | Warlord's base attacked by MAIN.C 5118 | -5/Warlord | Found Prototype Special Weapon 5118 | -5/Warlord | Identified RU-N14's Throwing Claymores v3 5146 | -5/Warlord | Met Warlord 5382 | -5/Warlord | Spotted Striker 5383 | -5/Warlord | Spotted Executioner 5389 | -5/Warlord | Build established: Commander-Sprinter 5397 | -5/Warlord | Warlord forces counterattacked 5448 | -5/Warlord | Spotted Executioner 5450 | -5/Warlord | Spotted Executioner 5487 | -5/Warlord | Discovered new exit (range 9) 5517 | -5/Warlord | Entered Proximity Caves 5517 | -4/Proximity Caves | Accompanied by 4 allies 5523 | -4/Proximity Caves | Learned location of Quarantine (-2) 5552 | -4/Proximity Caves | Identified exit to Factory 5602 | -4/Proximity Caves | Learned 8 Research zone layouts 5641 | -4/Proximity Caves | Spotted B-86 Titan 5884 | -4/Proximity Caves | Spotted B-86 Titan 5885 | -4/Proximity Caves | Entered a huge 0b10 base via the front door 6010 | -4/Proximity Caves | Derelicts attacked a huge 0b10 base 6011 | -4/Proximity Caves | Entered Factory 6011 | -4/Factory | Evolved 2 slots: Propulsion x1, Utility x1 6289 | -4/Factory | Fabricated Cesium-ion Thruster (x2) 6760 | -4/Factory | Discovered new exit (range 15) 6767 | -4/Factory | Lost 6 parts (3n2u1w) 6771 | -4/Factory | Identified exit to Upper Caves 6771 | -4/Factory | Entered Upper Caves 6867 | -4/Upper Caves | Build established: Scavenger-Sprinter 6889 | -4/Upper Caves | Attacked by a delusional Derelict stockpiling Unaware 6918 | -4/Upper Caves | Discovered new exit (range 11) 6920 | -4/Upper Caves | Identified exit to Upper Caves 6920 | -4/Upper Caves | Entered another Upper Caves area 6950 | -4/Upper Caves | Discovered new exit (range 12) 6953 | -4/Upper Caves | Identified exit to Research 6953 | -4/Upper Caves | Entered Research 6953 | -3/Research | Evolved 2 slots: Propulsion x1, Utility x1 7049 | -3/Research | Lost 3 parts (3n) 7218 | -3/Research | Repaired Field Propulsion Array 7391 | -3/Research | Fabricated Q-thruster? 7512 | -3/Research | Build established: Hacker-Sprinter 7604 | -3/Research | Lost 4 parts (2n2u) 7715 | -3/Research | Repaired Impulse Thruster? 7785 | -3/Research | Found Fusion Bomb Launcher 7886 | -3/Research | System corruption reached 10% 7913 | -3/Research | Lost 21 parts (4p9n7u1w) 8046 | -3/Research | Cargo convoy interrupted 8085 | -3/Research | Build established: Scavenger-Mutant 8147 | -3/Research | System corruption reached 30% 8170 | -3/Research | Spotted B-86 Titan 8245 | -3/Research | Discovered new exit (range 11) 8260 | -3/Research | Entered Testing 8261 | -3/Testing | Maximum security lockdown engaged 8264 | -3/Testing | Spotted PP-MIT60JU07J 8267 | -3/Testing | Spotted PG-AKEHV511MW 8329 | -3/Testing | Discovered new exit (range 11) 8351 | -3/Testing | Entered Research 8351 | -2/Research | Warlord forces began assault on 0b10 8351 | -2/Research | Evolved 2 slots: Utility x2 8382 | -2/Research | Met up with Warlord 8390 | -2/Research | Spotted B-90 Cyclops 8415 | -2/Research | Build established: Scavenger-Sprinter 8441 | -2/Research | Discovered new exit (range 4) 8461 | -2/Research | Research machine network offline 8500 | -2/Research | Found Enh. Force Lance 8533 | -2/Research | Entered Access 8533 | -1/Access | Evolved 2 slots: Propulsion x1, Utility x1 8675 | -1/Access | Garrison activated, responded to threat 8982 | -1/Access | Spotted B-99 Colossus 8982 | -1/Access | Spotted B-99 Colossus 9022 | -1/Access | Discovered new exit (range 7) 9023 | -1/Access | Entered Command 9025 | -1/Command | Lost 5 parts (5u) 9062 | -1/Command | Spotted M Guard 9062 | -1/Command | Spotted M Guard 9062 | -1/Command | Spotted Combat Programmer 9082 | -1/Command | Spotted Combat Programmer 9090 | -1/Command | Met MAIN.C 9092 | -1/Command | 0b10 Conduit disabled 9116 | -1/Command | Core integrity fell below 50% 9116 | -1/Command | System corruption reached 10% 9123 | -1/Command | Core integrity fell below 20% 9129 | -1/Command | Destroyed by MAIN.C with Heavy Quantum Rifle Last Messages --------------- 09109_ Penetrated by EMDS Slug. 09110_ Enh. Force Lance destroyed. 09110_ Imp. Melee Analysis Suite destroyed. 09111_ Penetrated by EMDS Slug. 09112_ Adv. Heat Sink destroyed. 09112_ Lgt. Quantum Reactor destroyed. 09112_ Penetrated by EMDS Slug. 09112_ Exp. Q-thruster destroyed. 09114_ Penetrated by EMDS Slug. 09117_ EMDS Slug penetrates MAIN.C. 09119_ Imp. Q-thruster destroyed. 09119_ Adv. Target Analyzer destroyed. 09121_ Penetrated by EMDS Slug. 09122_ Power Sword destroyed. 09122_ Penetrated by EMDS Slug. 09124_ EMDS Slug penetrates Combat Programmer. 09126_ Penetrated by EMDS Slug. 09126_ Combat Programmer resets Combat Programmer, system corruption cleaned. 09128_ Penetrated by EMDS Slug. Map ----- +----------------------------------------------------+ | ?????????????????????????????????????????????????? | | ?????????????????????????????????????????????????? | | ?????????????????????????????????????????????????? | | ?????????????????????????????????????????????????? | | ?????????????????????????????????????????????????? | | ?????????????????????????????????????????????????? | | ?????????????????????????????????????????????????? | | ?????????????????????????????????????????????????? | | ?????????????????????????????????????????????????? | | ?????????????????????????????????????????????????? | | ?????????????????????????????????????????????????? | | ?????????????????????????????????????????????????? | | ?????????????????????????????????????????????????? | | ?????????????????????????????????????????????????? | | ???????????????????????################??????????? | | ????????????????????"""" """ #??????????? | | ???????????????????? "" #??????????? | | ????????????????#???"" "" ############ | | ????????????????#"""""""""" / | | ????????????????#" " """ / | | ????????????????#"" """"" Y / | | ????????????????#"" """ Y!############ | | ????????????????# " "" !#??????????? | | ????????????????# " p #??????????? | | ????????????????# " pMMM "#??????????? | | ????????????????#"" "" @MMM """#??????????? | | ????????????????#" MMM """"#??????????? | | ????????????????# """"#??????????? | | ????????????????# " #??????????? | | ????????????????# " #??????????? | | ????????????????" "" " #??????????? | | ????????????????" " " """" #??????????? | | ????????????????" " " " " #??????????? | | ????????????????# " " """ " #??????????? | | ????????????????# " " " " """"""""#??????????? | | ????????????????# """ " " " ???????????? | | ????????????????######################???????????? | | ?????????????????????????????????????????????????? | | ?????????????????????????????????????????????????? | | ?????????????????????????????????????????????????? | | ?????????????????????????????????????????????????? | | ?????????????????????????????????????????????????? | | ?????????????????????????????????????????????????? | | ?????????????????????????????????????????????????? | | ?????????????????????????????????????????????????? | | ?????????????????????????????????????????????????? | | ?????????????????????????????????????????????????? | | ?????????????????????????????????????????????????? | | ?????????????????????????????????????????????????? | | ?????????????????????????????????????????????????? | +----------------------------------------------------+ Best States ------------- Heat Dissipation 144 Energy Generation 53 Energy Capacity 465 Matter Stores 300 Matter Capacity 300 Sight Range 16 Robot Scan Range 14 Terrain Scan Range 16 Terrain Scan Density 10 ECM Strength 2 Cloak Strength 2 Power Amplification 30 Base Temperature (-) 200 Armor Coverage 375 Evasion (%) 77 Melee Accuracy 12 Launcher Accuracy 30 Target Analysis 12 Core Analysis 6 Recoil Reduction 2 Offensive Hacking 32 Defensive Hacking 12 Item Schematics ----------------- Lrg. Storage Unit | -9/Materials | Hacked Seismic Detector | -9/Materials | Hacked Sensor Array | -9/Materials | Hacked Imp. Light Armor Plating | -8/Materials | Scanalyzed Hacking Suite | -8/Materials | Scanalyzed Carbide Saw | -5/Factory | Scanalyzed Cesium-ion Thruster | -5/Factory | Scanalyzed Smartbomb Launcher | -4/Factory | Scanalyzed Q-thruster | -3/Research | Scanalyzed Robot Schematics ------------------ None Fabricated ------------ Cesium-ion Thruster | x2 | -4/Factory Q-thruster | x2 | -3/Research Alien Tech Used ----------------- None Achievements -------------- All-out Warlord Ambidextrous Deadly Force Meet Your Maker Speed Demon Challenges ------------ None Game ------ Seed SurveybotClaymoresPurifier Manual? 0 Play Time 03:35:54 Cumulative 41.4 hours Start 2022.03.29 @ 15:41:09 End 2022.03.29 @ 21:42:54 Sessions 1 Manual Loads 0 Difficulty Rogue Special Mode None Game No. 30 Rogue 30 Adventurer 0 Explorer 0 Win Type - Total 1 Types 1/0/0/0/0/0/0/0/0 Lore% 48 Gallery% 47 Achievement% 45 Wizard Run 0 Options --------- ASCII 0 Keyboard 1 Movement Vi Keybinds 0 Fullscreen 2 Font 24/Proggy Map View 76x50 Tactical HUD 1 Map Filters NONE Filters NONE Steam 1 RUN: 4f25f62b-c14d-4273-9d6a-d739587789b4